bitfinex/quotes_ETHUSD_20250220
["timestamp","ask_amount","ask_price","bid_price","bid_amount"]
[1740093945261,3.81685,2742.1,2741.8,3.42898555]
[1740093945983,3.64697,2742.0,2741.8,3.42898555]
[1740093946184,0.17,2742.1,2741.8,3.42898555]
[1740093946409,3.64697,2742.0,2741.8,3.42898555]
[1740093947409,0.17,2742.1,2741.8,3.42898555]
[1740093947903,3.8169,2742.1,2741.8,3.42898555]
[1740093948778,3.64698,2742.0,2741.8,3.42898555]
[1740093948975,0.17,2742.0,2741.8,3.42898555]
[1740093949179,3.81703,2742.0,2741.8,3.42898555]
[1740093951195,3.81703,2742.0,2741.7,0.8272]
[1740093951391,7.46408,2742.0,2741.7,0.8272]
[1740093951717,3.81703,2742.0,2741.7,0.8272]
[1740093951920,3.64729,2741.8,2741.5,4.4471]
[1740093952083,3.64729,2741.8,2741.3,0.7971]
[1740093952291,3.64752,2741.6,2741.3,0.7971]
[1740093952814,3.64739,2741.7,2741.3,0.7971]
[1740093953113,3.64739,2741.7,2741.4,0.18391608]
[1740093954516,4.19739,2741.7,2741.4,0.18391608]
[1740093954719,0.55,2741.7,2741.4,0.18391608]
[1740093955013,3.8175,2741.6,2741.3,0.7971]
[1740093955392,0.17,2741.6,2741.3,0.7971]
[1740093955592,0.17,2741.6,2741.3,4.44496]
[1740093955961,0.17,2741.6,2741.3,0.7971]
[1740093956717,3.81751,2741.6,2741.3,0.7971]
[1740093957715,3.81751,2741.6,2741.4,0.18396074]
[1740093958009,3.64763,2741.5,2741.4,0.18396074]
[1740093958213,3.81751,2741.6,2741.4,0.18396074]
[1740093959216,0.17,2741.6,2741.4,0.18396074]
[1740093959512,0.17,2741.6,2741.1,8.15285555]
[1740093959513,3.64763,2741.5,2741.2,0.27264536]
[1740093959729,3.81752,2741.6,2741.2,0.27264536]
[1740093960432,7.46511,2741.6,2741.2,0.27264536]
[1740093960742,3.81752,2741.6,2741.3,0.18402552]
[1740093960947,3.64764,2741.5,2741.3,0.45667088]
[1740093962714,0.17,2741.6,2741.4,0.18402552]
[1740093963911,0.17,2741.6,2741.2,3.64796]
[1740093964249,0.17,2741.6,2741.2,5.35858766]
[1740093964410,3.81756,2741.6,2741.3,3.0]
[1740093964946,0.17,2741.6,2741.3,3.0]
[1740093965810,0.17,2741.6,2741.4,0.27288191]
[1740093967348,0.17,2741.6,2741.5,0.18405959]
[1740093969452,0.17,2741.6,2741.5,0.99905959]
[1740093969658,0.17,2741.6,2741.5,5.48156234]
[1740093970455,0.17,2741.6,2741.5,5.75445472]
[1740093971325,0.17,2741.6,2741.5,4.91958197]
[1740093973558,0.17,2741.6,2741.5,8.56958197]
[1740093973857,0.17,2741.6,2741.5,9.14046621]
[1740093975077,0.17,2741.6,2741.5,9.87529479]
[1740093977144,0.17,2741.6,2741.5,13.42529479]
[1740093977344,0.17,2741.6,2741.5,15.47549982]
[1740093978751,0.72,2741.7,2741.6,3.0]
[1740093978946,0.72,2741.7,2741.6,6.6475]
[1740093979146,0.72,2741.7,2741.6,6.83155959]
[1740093979881,0.72,2741.7,2741.6,7.10055959]
[1740093980186,0.72,2741.7,2741.6,4.10055959]
[1740093981151,0.72,2741.7,2741.6,0.45305959]
[1740093981544,0.72,2741.7,2741.6,0.18405959]
[1740093983200,0.72,2741.7,2741.6,3.6475]
[1740093983511,0.72,2741.7,2741.6,4.9861843]
[1740093984285,0.72,2741.7,2741.6,6.31726854]
[1740093984500,0.72,2741.7,2741.6,9.31726854]
[1740093985801,0.72,2741.7,2741.6,9.58983511]
[1740093985956,0.72,2741.7,2741.6,9.77371791]
[1740093987482,0.72,2741.7,2741.6,15.64371791]
[1740093989619,0.72,2741.7,2741.6,15.37115134]
[1740093993829,0.72,2741.7,2741.6,14.82115134]
[1740093994439,0.72,2741.7,2741.6,15.37115134]
[1740093997337,0.72,2741.7,2741.6,14.82115134]
[1740093997738,0.72,2741.7,2741.6,15.37115134]
[1740093998958,0.7741,2742.6,2742.5,3.6463]
[1740093999104,0.7741,2742.9,2742.7,3.64595]
[1740093999305,0.7741,2742.9,2742.6,3.648]
[1740093999619,0.7741,2742.9,2742.6,7.29404]
[1740093999849,0.7741,2742.9,2742.7,0.76113229]
[1740094000152,0.7741,2742.9,2742.7,4.40715229]
[1740094000349,0.7981,2743.2,2742.8,3.6459]
[1740094000549,0.7981,2743.2,2742.7,4.40715229]
[1740094001735,0.7981,2743.2,2742.8,3.42898555]
[1740094001955,0.7981,2743.2,2742.8,4.21259933]
[1740094002522,0.7981,2743.2,2742.8,7.85848933]
[1740094002712,0.7981,2743.2,2742.9,3.64572]
[1740094002907,0.7981,2743.2,2742.8,7.85848933]
[1740094003253,0.7981,2743.2,2742.8,7.85843933]
[1740094004134,0.7981,2743.2,2742.8,4.21259933]
[1740094004316,0.7981,2743.2,2742.9,0.85867832]
[1740094005832,0.7981,2743.2,2742.8,0.78361378]
[1740094006113,0.7981,2743.2,2742.7,3.64597]
[1740094007345,0.7981,2743.2,2742.7,8.01913503]
[1740094007849,0.7981,2743.2,2742.7,4.37315503]
[1740094009449,0.7981,2743.2,2742.7,3.64595]
[1740094010413,4.4435,2743.2,2742.7,3.64595]
[1740094010756,0.7981,2743.2,2742.7,3.64595]
[1740094010939,0.6981,2743.2,2742.7,0.78157168]
[1740094011144,0.6981,2743.2,2742.8,3.64582]
[1740094011514,0.6981,2743.2,2742.8,7.29164]
[1740094011718,0.6981,2743.2,2742.8,3.64582]
[1740094012369,0.6981,2743.2,2742.7,4.42752168]
[1740094012782,0.6981,2743.2,2742.8,3.64588]
[1740094013283,0.015,2743.3,2742.7,6.08785515]
[1740094013433,0.005,2743.4,2742.9,1.66026347]
[1740094013829,3.65017,2743.4,2742.9,1.66026347]
[1740094014063,0.8164,2743.3,2742.9,1.66026347]
[1740094015069,0.8164,2743.3,2742.9,5.30602347]
[1740094015280,0.8164,2743.3,2742.9,1.66026347]
[1740094017370,0.8164,2743.3,2742.9,5.30598347]
[1740094020477,0.8164,2743.3,2742.9,1.66026347]
[1740094021264,0.8164,2743.3,2742.9,5.30599347]
[1740094021842,0.8164,2743.3,2743.0,3.64561]
[1740094022062,0.8164,2743.3,2742.9,5.30603347]
[1740094022379,0.8164,2743.3,2743.1,1.66026347]
[1740094026147,0.8164,2743.3,2742.9,1.66026347]
[1740094026586,0.8164,2743.3,2742.9,5.30603347]
[1740094026985,0.8164,2743.3,2743.0,0.18358834]
[1740094027976,0.447388,2743.3,2743.0,0.18358834]
[1740094028290,0.771,2743.2,2743.0,0.18358834]
[1740094028450,0.771,2743.2,2742.9,1.66026347]
[1740094029866,0.771,2743.2,2743.0,0.18358834]
[1740094030773,0.771,2743.2,2742.9,1.66026347]
[1740094031209,0.771,2743.2,2742.4,3.74255455]
[1740094031520,0.771,2743.2,2741.8,0.1826567]
[1740094031521,0.7579,2742.5,2741.7,2.47976347]
[1740094031668,0.0075,2742.4,2741.9,1.66026347]
[1740094031875,0.0075,2742.4,2742.0,3.64688]
[1740094032070,0.0075,2742.4,2742.1,5.30699347]
[1740094032375,0.0075,2742.4,2741.9,6.64709]
[1740094032726,0.0075,2742.4,2742.2,0.18364597]
[1740094034727,0.0075,2742.4,2742.1,0.18364597]
[1740094035048,4.4418,2742.2,2742.1,0.18364597]
[1740094035825,0.7801,2742.0,2741.6,0.18364597]
[1740094036024,0.0075,2741.9,2741.6,0.18364597]
[1740094036174,0.7801,2741.8,2741.6,0.18364597]
[1740094036372,4.870889,2741.8,2741.6,0.18364597]
[1740094037025,1.223579,2741.8,2741.6,0.18364597]
[1740094037189,0.7801,2741.8,2741.6,0.18364597]
[1740094037576,0.7801,2741.8,2741.3,3.42615158]
[1740094039930,4.42737,2741.8,2741.3,3.42615158]
[1740094040080,0.7801,2741.8,2741.3,3.42615158]
[1740094040280,4.42742,2741.8,2741.3,3.42615158]
[1740094040507,0.7801,2741.8,2741.3,3.42615158]
[1740094041210,0.7801,2741.8,2741.4,3.6477]
[1740094041577,0.7801,2741.8,2741.5,3.64753]
[1740094041808,0.0075,2742.0,2741.6,7.07356158]
[1740094041983,0.7568,2742.1,2741.6,3.42615158]
[1740094042178,0.7643,2742.3,2741.6,3.42615158]
[1740094042416,0.7643,2742.3,2741.7,3.64724]
[1740094042614,0.7643,2742.3,2741.8,3.64718]
[1740094042792,0.7643,2742.3,2741.8,3.6472]
[1740094043402,0.7643,2742.3,2741.7,3.64735]
[1740094043924,0.7643,2742.3,2741.8,3.64717]
[1740094044224,0.7643,2742.3,2741.9,3.64709]
[1740094044416,0.7643,2742.3,2741.8,3.64716]
[1740094045625,0.7643,2742.3,2741.6,7.07357158]
[1740094045792,0.7643,2742.3,2741.7,4.96437716]
[1740094047117,4.41087,2742.3,2741.7,4.96437716]
[1740094047597,4.41087,2742.3,2741.6,7.07357158]
[1740094048723,4.41087,2742.3,2741.6,10.72096158]
[1740094048929,4.41087,2742.3,2741.7,3.64736]
[1740094050337,0.8223,2742.2,2741.7,3.64736]
[1740094050839,0.8223,2742.2,2741.6,3.42615158]
[1740094051144,0.8223,2742.0,2741.6,3.0]
[1740094053662,0.8223,2742.0,2741.6,6.64738]
[1740094054006,0.8223,2742.0,2741.6,3.0]
[1740094054407,0.8223,2742.0,2741.6,6.64746]
[1740094055133,0.8223,2742.0,2741.6,3.0]
[1740094056845,4.46927,2742.0,2741.5,3.0]
[1740094057462,0.8223,2742.0,2741.5,6.64752]
[1740094059848,4.46927,2742.0,2741.5,6.64752]
[1740094061025,0.8223,2742.0,2741.5,6.64752]
[1740094061225,0.8223,2742.0,2741.6,0.18363509]
[1740094062550,4.46927,2742.0,2741.6,0.18363509]
[1740094063147,4.46927,2742.0,2741.7,0.18363509]
[1740094063349,0.7851,2741.9,2741.7,0.18363509]
[1740094063554,4.41453,2741.8,2741.7,0.18363509]
[1740094063715,0.7673,2741.8,2741.7,0.18363509]
[1740094065551,0.7673,2741.8,2741.5,1.66174176]
[1740094071435,0.7598,2741.8,2741.5,5.30932176]
[1740094071628,0.7598,2741.8,2741.6,3.64747]
[1740094072933,0.7598,2741.8,2741.6,3.64749]
[1740094073650,0.8265,2742.0,2741.7,1.66174176]
[1740094073958,0.8265,2742.0,2741.9,1.66174176]
[1740094074860,0.8265,2742.0,2741.9,5.30884176]
[1740094075027,0.8265,2742.3,2741.9,1.66174176]
[1740094075227,0.8415,2742.3,2742.2,1.66174176]
[1740094076057,0.834,2742.3,2742.2,1.66174176]
[1740094076757,0.8049,2742.6,2742.2,5.30844176]
[1740094076924,0.8049,2742.6,2742.2,1.66174176]
[1740094079430,4.45108,2742.6,2742.2,1.66174176]
[1740094080463,3.65388,2742.5,2742.0,1.66174176]
[1740094080666,0.8049,2742.4,2742.0,1.66174176]
[1740094082241,4.45134,2742.4,2742.0,1.66174176]
[1740094084861,3.66164,2742.3,2741.8,10.62897176]
[1740094085165,3.66164,2742.3,2741.8,6.98174176]
[1740094085530,3.66164,2742.3,2741.8,10.62897176]
[1740094085786,0.015,2742.3,2741.9,3.64709]
[1740094085960,0.015,2742.3,2742.0,1.66174176]
[1740094086632,0.015,2742.3,2741.7,4.69854]
[1740094086839,0.015,2742.3,2741.9,1.66174176]
[1740094087029,0.826271,2742.3,2741.9,1.66174176]
[1740094087583,0.7605,2742.1,2741.9,1.66174176]
[1740094088176,0.7605,2742.1,2741.7,5.30908176]
[1740094088482,4.40741,2742.1,2741.7,1.66174176]
[1740094090378,0.7605,2742.1,2741.7,1.66174176]
[1740094090876,4.40734,2742.1,2741.7,1.66174176]
[1740094091980,0.015,2742.0,2741.7,1.66174176]
[1740094093078,3.66198,2742.0,2741.7,1.66174176]
[1740094093283,0.015,2742.0,2741.7,1.66174176]
[1740094094267,3.66204,2742.0,2741.7,1.66174176]
[1740094094472,0.015,2742.0,2741.7,1.66174176]
[1740094095247,0.8262,2741.9,2741.5,5.30931176]
[1740094096058,0.8262,2741.9,2741.6,0.18368117]
[1740094096263,4.47332,2741.9,2741.6,0.18368117]
[1740094096565,0.8262,2741.9,2741.6,0.18368117]
[1740094097789,4.47332,2741.9,2741.5,5.30937176]
[1740094098504,0.0075,2741.8,2741.5,1.66174176]
[1740094098739,0.0075,2741.8,2741.4,3.6477]
[1740094099008,0.0075,2741.8,2741.5,5.30937176]
[1740094099153,0.0075,2741.8,2741.5,1.66174176]
[1740094099353,0.0075,2741.8,2741.5,5.30936176]
[1740094100704,0.0075,2741.8,2741.6,0.18375827]
[1740094102280,0.015,2741.8,2741.6,0.18375827]
[1740094102613,4.111809,2741.8,2741.6,0.18375827]
[1740094103577,4.111809,2741.8,2741.5,1.66174176]
[1740094103779,3.66224,2741.8,2741.5,1.66174176]
[1740094107189,0.7642,2741.7,2741.5,1.66174176]
[1740094107527,0.015,2741.6,2741.2,3.64802]
[1740094107841,0.015,2741.6,2741.4,1.66174176]
[1740094108226,0.015,2741.6,2741.4,5.30947176]
[1740094108430,0.015,2741.6,2741.4,1.66174176]
[1740094108632,0.015,2741.6,2741.4,5.30944176]
[1740094108832,0.015,2741.6,2741.4,1.66174176]
[1740094112678,4.469968,2741.6,2741.2,1.66174176]
[1740094112976,3.66258,2741.6,2741.2,1.66174176]
[1740094113135,3.66258,2741.6,2741.2,5.30970176]
[1740094113334,0.015,2741.6,2741.4,1.66174176]
[1740094115071,0.015,2741.6,2741.4,5.30950176]
[1740094115368,0.015,2741.6,2741.4,1.66174176]
[1740094117893,3.66255,2741.6,2741.2,3.64794]
[1740094118047,0.457675,2741.6,2741.3,5.30957176]
[1740094118750,0.015,2741.6,2741.3,5.30957176]
[1740094118949,0.015,2741.6,2741.3,1.66174176]
[1740094119891,0.015,2741.6,2741.3,5.30963176]
[1740094120807,0.015,2741.6,2741.3,3.64789]
[1740094120968,0.015,2741.6,2741.3,1.66174176]
[1740094121354,0.015,2741.6,2741.3,5.30957176]
[1740094121497,0.457645,2741.6,2741.3,5.30957176]
[1740094121711,0.457645,2741.6,2741.3,1.66174176]
[1740094122009,4.105175,2741.6,2741.3,1.66174176]
[1740094122172,0.457645,2741.6,2741.3,1.66174176]
[1740094122377,4.105165,2741.6,2741.3,1.66174176]
[1740094122577,0.0075,2741.4,2741.3,1.66174176]
[1740094123204,0.0075,2741.5,2741.3,1.66174176]
[1740094124497,0.0075,2741.4,2741.3,1.66174176]
[1740094127930,3.66277,2741.4,2741.3,1.66174176]
[1740094128415,0.8276,2741.3,2741.1,1.66174176]
[1740094130087,0.8276,2741.3,2741.2,0.18393999]
[1740094133133,0.015,2741.4,2741.2,0.18393999]
[1740094133421,0.015,2741.4,2741.3,1.66174176]
[1740094134886,3.66277,2741.4,2741.3,1.66174176]
[1740094135128,4.47424,2741.4,2741.3,1.66174176]
[1740094136027,4.47424,2741.4,2741.3,1.84573662]
[1740094136826,0.82647,2741.4,2741.3,1.84573662]
[1740094137028,0.015,2741.4,2741.3,1.84573662]
[1740094140209,0.7706,2742.7,2742.1,3.64678]
[1740094140427,0.7706,2742.7,2742.3,1.66174176]
[1740094140729,0.0075,2742.6,2742.5,1.66174176]
[1740094140937,0.0075,2742.6,2742.4,3.64642]
[1740094141230,0.015,2742.6,2742.4,7.29284]
[1740094141435,6.0906,2743.0,2742.5,1.66174176]
[1740094141633,0.015,2742.9,2742.7,5.30766176]
[1740094141930,0.015,2742.9,2742.7,8.95362176]
[1740094142234,0.7856,2743.2,2742.8,3.6459]
[1740094142730,3.65015,2743.4,2742.8,3.6459]
[1740094142731,0.005,2743.4,2742.9,0.89535618]
[1740094142935,0.005,2743.4,2743.3,6.06068176]
[1740094144218,0.005,2743.4,2743.3,1.66174176]
[1740094144715,0.005,2743.4,2743.2,3.64536]
[1740094144905,0.005,2743.4,2743.3,3.64524]
[1740094146344,0.005,2743.4,2743.3,7.82119371]
[1740094146534,0.005,2743.4,2743.3,13.28004395]
[1740094146737,0.005,2743.4,2743.3,13.78859264]
[1740094146962,0.005,2743.4,2743.3,14.40756451]
[1740094147252,0.005,2743.4,2743.3,13.78859264]
[1740094148550,0.005,2743.4,2743.3,13.28004395]
[1740094151752,0.005,2743.4,2743.3,10.28004395]
[1740094152045,0.005,2743.4,2743.3,7.06839371]
[1740094155774,0.005,2743.4,2743.3,3.42315371]
[1740094156270,0.005,2743.4,2743.3,7.06839371]
[1740094169899,0.005,2743.4,2743.0,3.42315371]
[1740094170066,0.005,2743.4,2742.9,3.42315371]
[1740094170696,0.005,2743.4,2743.0,7.29109]
[1740094170867,0.005,2743.4,2743.0,3.64552]
[1740094171063,0.005,2743.4,2743.1,3.64543]
[1740094172903,0.005,2743.4,2743.0,3.64564]
[1740094173274,0.005,2743.4,2743.1,3.64546]
[1740094174690,0.005,2743.4,2742.7,1.69065273]
[1740094174691,0.0075,2743.3,2742.7,1.69065273]
[1740094174890,0.0075,2743.1,2742.9,3.64571]
[1740094175606,0.0075,2743.1,2743.0,0.18333113]
[1740094177186,0.0075,2743.1,2743.0,3.82897113]
[1740094177585,0.0075,2743.1,2743.0,3.64564]
[1740094180709,0.0075,2743.1,2743.0,3.82886971]
[1740094182309,0.0075,2743.1,2743.0,0.18322971]
[1740094184115,0.0075,2743.1,2742.9,3.42315371]
[1740094184412,0.0075,2743.1,2742.9,7.06883371]
[1740094184614,0.0075,2743.1,2743.0,1.65998473]
[1740094185721,0.0075,2743.1,2743.0,5.30562473]
[1740094192425,0.0075,2743.1,2743.0,1.65998473]
[1740094193425,0.0075,2743.1,2743.0,5.30562473]
[1740094195626,0.0075,2743.1,2743.0,1.65998473]
[1740094196228,0.0075,2743.1,2743.0,5.30562473]
[1740094197729,0.0075,2743.1,2743.0,1.65998473]
[1740094198627,0.0075,2743.2,2743.0,1.65998473]
[1740094200532,0.0075,2743.2,2743.0,5.30554473]
[1740094200714,0.0075,2743.2,2743.0,1.65998473]
[1740094201316,0.0075,2743.2,2743.1,3.64551]
[1740094201522,0.0075,2743.2,2743.0,5.30560473]
[1740094201827,0.0075,2743.2,2743.0,5.30561473]
[1740094202737,0.0075,2743.2,2743.1,3.64551]
[1740094202906,0.0075,2743.2,2743.0,5.30556473]
[1740094203828,0.0075,2743.2,2743.1,0.18753735]
[1740094204138,0.0075,2743.2,2743.1,3.83304735]
[1740094204336,0.0075,2743.2,2743.1,0.18753735]
[1740094205440,0.005,2743.4,2743.1,0.93993735]
[1740094205640,0.005,2743.4,2743.3,3.64524]
[1740094206047,0.005,2743.4,2743.3,4.44074]
[1740094206928,0.0125,2743.4,2743.2,1.65998473]
[1740094207117,0.02,2743.4,2743.3,0.18353735]
[1740094207323,0.8151,2743.4,2743.3,0.18353735]
[1740094208244,0.015,2743.3,2743.2,5.30533473]
[1740094208446,0.005,2743.4,2743.3,3.64524]
[1740094208743,0.005,2743.4,2743.3,4.42114]
[1740094212208,0.005,2743.4,2743.2,1.65998473]
[1740094212668,0.005,2743.4,2743.2,5.30529473]
[1740094213168,0.005,2743.4,2743.3,3.64524]
[1740094213466,0.005,2743.4,2743.3,5.23869195]
[1740094218454,0.005,2743.4,2743.3,3.64524]
[1740094222189,0.005,2743.4,2743.3,5.30522473]
[1740094225691,0.005,2743.4,2743.3,5.64500391]
[1740094233675,0.005,2743.4,2743.3,1.99976391]
[1740094233878,4.45041,2743.4,2743.3,0.33977918]
[1740094234076,5.260701,2743.4,2743.3,0.33977918]
[1740094235893,0.015,2743.3,2743.1,0.004]
[1740094236099,3.66037,2743.2,2743.1,0.004]
[1740094236496,4.44827,2743.2,2743.1,0.004]
[1740094240121,9.76827,2743.2,2743.1,0.004]
[1740094240421,11.1911521,2743.2,2743.1,0.004]
[1740094257922,10.4032521,2743.2,2743.1,0.004]
[1740094259305,0.0075,2743.2,2743.1,0.837]
[1740094259507,0.005,2743.4,2743.1,4.48251]
[1740094259721,0.0125,2743.4,2743.1,0.837]
[1740094260600,0.0125,2743.4,2743.1,4.48243]
[1740094261002,0.0125,2743.4,2743.2,3.64537]
[1740094261237,0.005,2743.4,2743.3,7.07085]
[1740094261535,0.005,2743.4,2743.3,7.82215]
[1740094272959,0.005,2743.4,2743.3,8.10055513]
[1740094274966,0.005,2743.4,2743.3,7.82215]
[1740094275281,0.005,2743.4,2743.3,10.05374969]
[1740094286675,0.005,2743.4,2743.3,8.28748336]
[1740094295335,0.005,2743.4,2743.3,11.28748336]
[1740094295633,1e-05,2743.4,2743.3,11.83748336]
[1740094295842,0.1506042,2744.3,2744.2,4.42704]
[1740094296023,0.1506042,2744.3,2744.2,6.08638367]
[1740094296227,0.1506042,2744.3,2744.2,7.2515734]
[1740094296629,0.1506042,2744.3,2744.2,9.01202267]
[1740094298031,0.1506042,2744.3,2744.2,12.65802267]
[1740094299146,0.1506042,2744.3,2744.2,4.20279294]
[1740094299313,0.1506042,2744.3,2744.2,3.41979294]
[1740094301260,0.1506042,2744.3,2744.2,7.06383294]
[1740094301469,0.1506042,2744.3,2744.2,3.41979294]
[1740094302771,0.1506042,2744.3,2744.2,7.06383294]
[1740094303474,0.1506042,2744.3,2744.2,3.41979294]
[1740094306358,0.1506042,2744.3,2744.2,4.23439294]
[1740094308981,0.1506042,2744.3,2744.2,7.87843294]
[1740094309180,0.1506042,2744.3,2744.2,9.36564608]
[1740094309602,0.1506042,2744.3,2744.2,13.01164608]
[1740094314503,0.1506042,2744.3,2744.2,18.33164608]
[1740094321631,0.1506042,2744.3,2744.2,21.33164608]
[1740094321931,0.1506042,2744.3,2744.2,21.86650205]
[1740094325343,0.1506042,2744.3,2744.2,21.33164608]
[1740094326118,1e-05,2744.5,2744.4,4.46408]
[1740094326331,1e-05,2744.5,2744.4,7.46408]
[1740094326544,1e-05,2744.5,2744.4,8.01408]
[1740094326847,0.005,2745.0,2744.9,7.40911]
[1740094327050,0.005,2745.0,2744.9,19.79390294]
[1740094329160,0.005,2745.0,2744.9,16.28990294]
[1740094329326,0.005,2745.0,2744.9,16.02790294]
[1740094329656,0.005,2745.0,2744.9,16.28990294]
[1740094329857,0.005,2745.0,2744.9,18.09781623]
[1740094330154,0.005,2745.0,2744.9,18.35981623]
[1740094330473,0.8103,2745.0,2744.9,5.32]
[1740094330753,4.45335,2745.0,2744.6,3.68179294]
[1740094330924,4.45335,2745.0,2744.6,0.262]
[1740094331457,4.45335,2745.0,2744.6,3.90547]
[1740094331642,0.8103,2745.0,2744.7,3.64327]
[1740094332070,4.4533,2745.0,2744.6,8.19573752]
[1740094332274,0.8103,2745.0,2744.7,3.64334]
[1740094332467,0.8103,2745.0,2744.6,4.55226752]
[1740094332776,0.8103,2745.0,2744.6,8.19566752]
[1740094333195,4.45329,2745.0,2744.6,8.19566752]
[1740094333400,4.45329,2745.0,2744.6,3.68179294]
[1740094333605,4.45329,2745.0,2744.6,0.262]
[1740094333752,4.45498,2744.9,2744.6,0.262]
[1740094334971,4.45498,2744.9,2744.4,6.64374]
[1740094335153,4.45498,2744.9,2744.4,6.90574]
[1740094336558,4.45498,2744.9,2744.4,10.54946]
[1740094336758,4.45498,2744.9,2744.4,10.54942]
[1740094336963,0.8118,2744.9,2744.5,3.64356]
[1740094337206,4.45493,2744.9,2744.5,3.64356]
[1740094337618,4.45493,2744.9,2744.4,6.90577]
[1740094338518,4.45493,2744.9,2744.5,3.64364]
[1740094340319,0.8118,2744.9,2744.5,3.64364]
[1740094340986,0.8118,2744.9,2744.6,3.64348]
[1740094341185,0.8118,2744.9,2744.5,3.64364]
[1740094341388,0.8118,2744.9,2744.5,3.64355]
[1740094341620,0.8118,2744.9,2744.5,3.64365]
[1740094341989,0.8118,2744.9,2744.6,3.64345]
[1740094342313,0.8118,2744.9,2744.5,3.64365]
[1740094342519,0.8118,2744.9,2744.5,5.04057729]
[1740094342702,0.8118,2744.9,2744.5,5.04051729]
[1740094343701,0.005,2745.0,2744.8,3.64315]
[1740094343867,0.005,2745.0,2744.6,7.86289294]
[1740094344073,0.7628,2744.9,2744.6,3.41979294]
[1740094344303,0.7628,2744.9,2744.5,8.68650729]
[1740094344620,0.7628,2744.9,2744.6,3.64343]
[1740094344789,0.005,2745.0,2744.9,3.64311]
[1740094344991,0.005,2745.0,2744.9,7.06290294]
[1740094345186,0.005,2745.0,2744.8,3.64317]
[1740094345389,0.005,2745.0,2744.7,3.0]
[1740094345608,0.7834,2744.9,2744.7,3.0]
[1740094345968,0.7834,2744.9,2744.6,3.64351]
[1740094346272,0.7834,2744.9,2744.6,3.64343]
[1740094347131,0.7834,2744.9,2744.7,3.64337]
[1740094347484,0.7834,2744.9,2744.5,3.0]
[1740094347687,0.7834,2744.9,2744.6,7.75400294]
[1740094347987,0.005,2745.0,2744.6,7.75400294]
[1740094347988,0.005,2745.0,2744.8,3.64325]
[1740094349391,0.005,2745.0,2744.9,3.64311]
[1740094349825,0.005,2745.0,2744.9,7.06290294]
[1740094350123,0.005,2745.0,2744.9,10.89600294]
[1740094350291,0.005,2745.0,2744.9,12.71442823]
[1740094351390,0.005,2745.0,2744.9,18.03442823]
[1740094353209,0.005,2745.0,2744.9,18.75399854]
[1740094354606,0.005,2745.7,2745.6,3.64219]
[1740094354810,0.005,2745.7,2745.6,7.06198294]
[1740094355111,0.005,2745.7,2745.6,8.09331591]
[1740094356637,0.005,2745.7,2745.6,11.09331591]
[1740094358157,0.005,2745.7,2745.6,8.09331591]
[1740094358355,0.005,2745.7,2745.6,7.06198294]
[1740094358736,0.8024,2745.7,2745.6,7.06198294]
[1740094360051,0.8024,2745.7,2745.6,7.32398294]
[1740094361162,0.005,2745.7,2745.6,7.32398294]
[1740094361957,0.005,2745.7,2745.6,3.68179294]
[1740094365479,0.005,2745.7,2745.6,7.32398294]
[1740094366552,0.005,2745.7,2745.6,3.68179294]
[1740094367087,0.005,2745.7,2745.6,7.32398294]
[1740094367804,0.005,2745.7,2745.6,9.65780829]
[1740094368506,3.64143,2746.2,2745.7,3.64198]
[1740094368992,3.64122,2746.4,2745.7,3.64198]
[1740094369652,0.55,2747.0,2745.7,3.64198]
[1740094369884,3.6411,2746.5,2745.8,3.64183]
[1740094370088,3.64113,2746.4,2745.8,3.64183]
[1740094370755,3.6487,2746.4,2745.7,3.64205]
[1740094370965,0.36411,2746.5,2745.8,3.0]
[1740094371158,0.015,2746.4,2745.8,3.64183]
[1740094371474,0.8098,2746.3,2745.7,6.64197]
[1740094371669,0.8098,2746.3,2745.7,8.57055329]
[1740094371873,0.8098,2746.2,2745.7,8.57055329]
[1740094372073,0.8098,2746.2,2745.8,3.6419]
[1740094373270,0.8098,2746.2,2745.7,8.57061329]
[1740094374671,0.8098,2746.2,2745.7,1.92858329]
[1740094374877,0.8098,2746.2,2745.8,3.6419]
[1740094375198,0.8098,2746.2,2745.9,3.64169]
[1740094375399,0.8098,2746.2,2746.0,0.728359]
[1740094375565,0.8098,2746.2,2745.8,3.6419]
[1740094375761,0.8098,2746.2,2745.8,3.64186]
[1740094376501,0.8098,2746.2,2745.7,5.57062329]
[1740094376799,0.8098,2746.2,2745.8,3.64192]
[1740094377871,0.8098,2746.2,2745.7,1.92858329]
[1740094378077,0.8098,2746.2,2745.8,3.64191]
[1740094378802,0.8098,2746.2,2745.9,3.64178]
[1740094379004,0.7805,2746.2,2745.9,3.64178]
[1740094379595,0.7805,2746.2,2745.8,3.64184]
[1740094379805,0.7805,2746.2,2745.8,5.09906162]
[1740094379982,0.7805,2746.2,2745.8,1.45722162]
[1740094380306,0.7805,2746.2,2745.7,3.64203]
[1740094381086,0.7805,2746.2,2745.8,3.64192]
[1740094381499,0.7805,2746.2,2745.7,3.64203]
[1740094381686,0.7805,2746.2,2745.8,3.64183]
[1740094381881,0.7805,2746.2,2745.7,7.28397]
[1740094382205,0.7805,2746.2,2745.7,1.62857629]
[1740094382404,0.7805,2746.2,2745.7,3.64205]
[1740094383421,0.7805,2746.2,2745.7,3.90305]
[1740094383712,0.8042,2746.8,2745.9,3.41979294]
[1740094384010,3.64777,2747.1,2746.4,3.64106]
[1740094384177,0.8042,2746.7,2746.4,0.261]
[1740094384593,0.015,2746.6,2746.4,0.261]
[1740094384795,0.015,2746.6,2746.3,5.32]
[1740094384975,0.7979,2746.5,2746.3,5.32]
[1740094385175,0.7979,2746.5,2746.1,0.261]
[1740094386986,0.015,2746.4,2746.1,0.261]